Workbook

Sheet 1
E1: Приложение 1 к Постановлению № от .07.2023 г « Об исполнении бюджета сельской администрации МО Малочергинское сельское поселение за 2 квартал 2023 года."
A2: Объем поступлений доходов в бюджет муниципального образования Малочергинское сельское поселение за 2 квартал 2023 году
A3: Код главы администратора* | B3: Код бюджетной классификации Российской Федерации | C3: Наименование доходов | D3: Изменения (+;-) | E3: Утверждено, сумма (тыс.рублей) | F3: Исполнено, сумма (тыс.рублей) | G3: Неисполненные назначение сумма (тыс.рублей)
A4: 1 | B4: 2 | C4: 3 | D4: 4 | E4: 5
A5: 182 | B5: 1 00 00000 00 0000 000 | C5: НАЛОГОВЫЕ И НЕНАЛОГОВЫЕ ДОХОДЫ | D5: =D6+D15 ->  | E5: =E6+E15 -> 395.00 | F5: =F6+F15 -> 61.65 | G5: =E5-F5 -> 333
C6: НАЛОГОВЫЕ ДОХОДЫ | D6: =D7+D8+D10 -> 42.1 | E6: =E7+E8+E10 -> 380.00 | F6: =F7+F8+F10 -> 55.65 | G6: =E6-F6 -> 324
A7: 182 | B7: 1 01 02000 01 0000 110 | C7: Налог на доходы физических лиц | D7: 12.0 | E7: 25.00 | F7: 10.60 | G7: 14
A8: 182 | B8: 1 05 00000 00 0000 000 | C8: Налоги на совокупный доход | D8: =D9 -> -1.2 | E8: =E9 -> 29.00 | F8: =F9 -> 39.99 | G8: -11
A9: 182 | B9: 1 05 03000 01 0000 110 | C9: Единый сельскохозяйственный налог | D9: -1.2 | E9: 29.00 | F9: 39.99 | G9: -11
A10: 182 | B10: 1 06 00000 00 0000 000 | C10: Налоги на имущество | D10: =D11+D14 -> 31.3 | E10: =E11+E12 -> 326.00 | F10: =F11+F12 -> 5.07 | G10: 321
A11: 182 | B11: 1 06 01000 00 0000 110 | C11: Налог на имущество физических лиц | D11: -8.7 | E11: 50.00 | F11: 0.81 | G11: 49
A12: 182 | B12: 1 06 06000 00 0000 110 | C12: Земельный налог | D12: 40.0 | E12: =E13+E14 -> 276.00 | F12: =F13+F14 -> 4.25 | G12: 272
A13: 182 | B13: 1 06 06033 10 1000 110 | C13: Земельный налог с организаций | E13: 60.00 | F13: -8.34 | G13: 68
A14: 182 | B14: 1 06 06043 10 1000 110 | C14: Земельный налог с физических лиц | D14: 40.0 | E14: 216.00 | F14: 12.59 | G14: 203
C15: НЕНАЛОГОВЫЕ ДОХОДЫ | D15: =#REF! ->  | E15: =E16+E17 -> 15.00 | F15: =F16 -> 6.00 | G15: 9
A16: 801 | B16: 1 11 05035 10 0000 120 | C16: Доходы от сдачи в аренду имущества, находящегося в оперативном управлении органов управления сельских поселений и созданных ими учреждений (за исключением имущества муниципальных бюджетных и автономных учреждений) | E16: 12.00 | F16: 6.00 | G16: 6
A17: 801 | B17: 1 16 02020 02 0000 140 | C17: Административные штрафы, установленные законами субъектов Российской Федерации об административных правонарушениях, за нарушение муниципальных правовых актов | E17: 3.00
A18: 801 | B18: 2 00 00000 00 0000 000 | C18: Безвозмездные поступления | D18: =D19 -> 0.0 | E18: =E19 -> 3175.11 | F18: =F19 -> 1482.11 | G18: 1693
A19: 801 | B19: 2 02 00000 00 0000 000 | C19: Безвозмездные поступления от других бюджетов бюджетной системы Российской Федерации | D19: 0.0 | E19: =E20 -> 3175.11 | F19: =F20 -> 1482.11 | G19: 1693
A20: 801 | B20: 2 02 00000 00 0000 000 | C20: Безвозмездные поступления от других бюджетов бюджетной системы Российской Федерации | E20: =E21+E22+E23+E24+E25+E26 -> 3175.11 | F20: =SUM(F21:F26) -> 1482.11 | G20: 1693
A21: 801 | B21: 2 02 15001 10 0000 150 | C21: Дотации бюджетам субъектов Российской Федерации и муниципальных образований | E21: 1871.30 | F21: 965.69 | G21: 906
A22: 801 | B22: 2 02 29999 10 0000 150 | C22: Прочие субсидии бюджетам сельских поселений | E22: 150.00 | G22: 150
A23: 801 | B23: 2 02 35118 10 0000 150 | C23: Субвенции бюджетам сельских поселений на выполнение передаваемых полномочий субъектов Российской Федерации | E23: 7.50 | F23: 7.50 | G23: 0
A24: 801 | B24: 2 02 03000 00 0000 151 | C24: Субвенции бюджетам субъектов Российской Федерации и муниципальных образований | D24: 2.3 | E24: 123.60 | F24: 65.06 | G24: 59
A25: 801 | B25: 2 02 04014 10 0000 151 | C25: Межбюджетные трансферты, передаваемые бюджетам муниципальных образований на осуществление части полномочий по решению вопросов местного значения | D25: -45.8 | E25: 273.61 | F25: 128.86 | G25: 145
A26: 801 | B26: 2 02 04999 10 0000 151 | C26: Прочие межбюджетные трансферты, передаваемые бюджетам сельских поселений | D26: 45.8 | E26: 749.10 | F26: 315.00 | G26: 434
C27: Всего доходов | D27: =D5+D18 ->  | E27: =E5+E18 -> 3570.11 | F27: =F5+F18 -> 1543.77 | G27: =E27-F27 -> 2026

Sheet 2
B1: Приложение 2 к Постановлению № от .07.2023 г « Об исполнении бюджета сельской администрации МО Малочергинское сельское поселение за 2 квартал 2023 года."
A3: Распределение бюджетных ассигнований по разделам, подразделам классификации расходов бюджета муниципального образования Малочергинское сельское поселение за 2 квартал 2023 год
A5: Наименование показателя | B5: Раздел, подраздел | C5: Изменения (+;-) | D5: Утверждено, (тыс.руб.) | E5: Исполнено, (тыс.руб.) | F5: Неисполненные назначение сумма (тыс.руб.)
A6: ОБЩЕГОСУДАРСТВЕННЫЕ ВОПРОСЫ | B6: 0100 | C6: =SUM(C7:C8) -> 130.8 | D6: =SUM(D7:D11) -> 2479.90 | E6: =SUM(E7:E11) -> 1058.83 | F6: =D6-E6 -> 1421.1
A7: Функционирование высшего должностного лица субъекта Российской Федерации и муниципального образования | B7: 0102 | C7: -38.0 | D7: ='3'!G7 -> 350.00 | E7: ='3'!H7 -> 178.23 | F7: =D7-E7 -> 171.8
A8: Функционирование Правительства Российской Федерации, высших исполнительных органов государственной власти субъектов Российской Федерации, местных администраций | B8: 0104 | C8: 168.8 | D8: ='3'!G11 -> 1572.34 | E8: ='3'!H11 -> 565.33 | F8: 1007.0
A9: Резервные фонды | B9: 0111 | D9: 15.00 | F9: 15.0
A10: Выборы | B10: 0107 | D10: ='3'!G22 -> 91.06
A11: ДРУГИЕ ОБЩЕГОСУДАРСТВЕННЫЕ РАСХОДЫ | B11: 0113 | D11: ='3'!G34 -> 451.50 | E11: ='3'!H34 -> 315.28 | F11: 136.2
A12: НАЦИОНАЛЬНАЯ ОБОРОНА | B12: 0200 | C12: =C13 -> 50.5 | D12: =D13 -> 123.60 | E12: =E13 -> 65.06 | F12: 58.5
A13: Мобилизационная и вневойсковая подготовка | B13: 0203 | C13: 50.5 | D13: ='3'!G52 -> 123.60 | E13: ='3'!H53 -> 65.06 | F13: 58.5
A14: НАЦИОНАЛЬНАЯ ЭКОНОМИКА | B14: 0400 | D14: =D15+D16 -> 244.75 | E14: =E15 -> 0.00 | F14: 244.7
A15: Дорожное хозяйство (дорожные фонды) | B15: 0409 | D15: ='3'!G57 -> 244.75 | F15: 244.7
A16: Другие вопросы в области национальной экономики | B16: 0412 | F16: 0.0
A17: ЖИЛИЩНО-КОММУНАЛЬНОЕ ХОЗЯЙСТВО | B17: 0500 | D17: =D19+D18 -> 203.78 | E17: =E18+E19 -> 20.98 | F17: 182.8
A18: Коммунальное хозяйство | B18: 0502 | D18: ='3'!G62 -> 28.86 | E18: ='3'!H63 -> 16.56 | F18: 12.3
A19: БЛАГОУСТРОЙСТВО | B19: 0503 | D19: ='3'!G67 -> 174.92 | E19: ='3'!H66 -> 4.42 | F19: 170.5
A20: ФИЗИЧЕСКАЯ КУЛЬТУРА И СПОРТ | B20: 1100 | C20: 11 | D20: =D21 -> 532.00 | E20: =E21 -> 400.01 | F20: 132.0
A21: Другие вопросы в области физической культуры и спорта | B21: 1105 | D21: ='3'!G71 -> 532.00 | E21: ='3'!H71 -> 400.01 | F21: 132.0
A22: ВСЕГО РАСХОДОВ | C22: =C6+#REF!+#REF!+C12+C14 ->  | D22: =D6+D12+D14+D17+D20 -> 3584.03 | E22: =E6+E12+E14+E17+E20 -> 1544.88 | F22: 2039.1

Sheet 3
C1: Приложение 3 к Постановлению № от .07.2023 г « Об исполнении бюджета сельской администрации МО Малочергинское сельское поселение за 2 квартал 2023 года."
A2: Ведомственная структура расходов бюджета муниципального образования Малочергинское сельское поселение на 2023 год
H3: (тыс. рублей)
A4: Наименование главного распорядителя | B4: Гл | C4: Рз | D4: ПР | E4: ЦСР | F4: ВР | G4: Утверждено, (тыс.руб.) | H4: Исполнено, (тыс.руб.) | I4: Неисполненные назначение сумма (тыс.руб.)
A5: 1 | B5: 2 | C5: 3 | D5: 4 | E5: 5 | F5: 6 | G5: 7 | H5: 8 | I5: 9
A6: ОБЩЕГОСУДАРСТВЕННЫЕ ВОПРОСЫ | B6: 801 | C6: 01 | D6: 00 | G6: =G7+G11+G21+G23+G34 -> 2479.90 | H6: =H7+H11+H21+H23+H34 -> 1058.83 | I6: =G6-H6 -> 1421.1
A7: Функционирование высшего должностного лица субьекта Российской Федерации и муниципального образования | B7: 801 | C7: 01 | D7: 02 | G7: =G8 -> 350.00 | H7: 178.23 | I7: =G7-H7 -> 171.8
A8: Непрограммные направления деятельности сельской администрации | B8: 801 | C8: 01 | D8: 02 | G8: 350.00 | H8: 178.23 | I8: 171.8
A9: Обеспечение деятельности высшего должностного лица | B9: 801 | C9: 01 | D9: 02 | E9: 99 0 Л0 10100 | G9: 350.00 | H9: 178.23 | I9: 171.8
A10: Расходы на выплаты персоналу в целях обеспечения выполнения функций государственными (муниципальными) органами, казенными учреждениями, органами управления государственными внебюджетными фондами | B10: 801 | C10: 01 | D10: 02 | E10: 99 0 Л0 10100 | F10: 100 | G10: 350.00 | H10: 178.23 | I10: 171.8
A11: Функционирование Правительства Российской Федерации, высших исполнительных органов государственной власти субъектов Российской Федерации, местных администрации | B11: 801 | C11: 01 | D11: 04 | G11: =G12+G17 -> 1572.34 | H11: =H12+H17 -> 565.33 | I11: 1007.0
A12: Подпрограмма "Развитие экономического и налогового потенциал" | B12: 801 | C12: 01 | D12: 04 | E12: 01 2 00 00000 | G12: =G13+G15 -> 81.72 | H12: =H13+H15 -> 7.80 | I12: 73.9
A13: Основное мероприятие "Формирование эффективной системы управления и распоряжения муниципальными финансами" | B13: 801 | C13: 01 | D13: 04 | E13: 01 2 01 00000 | G13: =G14 -> 40.00 | H13: =H14 -> 7.80 | I13: 32.2
A14: Уплата налогов, сборов и иных платежей | B14: 801 | C14: 01 | D14: 04 | E14: 01 2 01 01000 | F14: 800 | G14: 40.00 | H14: 7.80 | I14: 32.2
A15: Основное мероприятие "Повышение эффективности управления муниципальной собственностью" | B15: 801 | C15: 01 | D15: 04 | E15: 01 2 02 10000 | G15: =G16 -> 41.72 | H15: =H16 -> 0.00 | I15: 41.7
A16: Иные межбюджетные трансферты | B16: 801 | C16: 01 | D16: 04 | E16: 01 2 02 01100 | F16: 500 | G16: 41.72 | H16: 0.00 | I16: 41.7
A17: Подпрограмма "Создание условий реализаций муниципальной программы" | B17: 801 | C17: 01 | D17: 04 | E17: 01 3 00 00000 | G17: =G18 -> 1490.62 | H17: =H18 -> 557.52 | I17: 933.1
A18: Основное мероприятие "Повышение эффективности муниципального управления" | B18: 801 | C18: 01 | D18: 04 | E18: 01 3 01 00000 | G18: =G19+G20 -> 1490.62 | H18: =H19+H20 -> 557.52 | I18: 933.1
A19: Расходы на выплаты персоналу в целях обеспечения выполнения функций государственными (муниципальными) органами, казенными учреждениями, органами управления государственными внебюджетными фондами | B19: 801 | C19: 01 | D19: 04 | E19: 01 3 У1 80110 | F19: 100 | G19: 916.52 | H19: 420.44 | I19: 496.1
A20: Расходы на выплаты персоналу в целях обеспечения выполнения функций государственными (муниципальными) органами, казенными учреждениями, органами управления государственными внебюджетными фондами | B20: 801 | C20: 01 | D20: 04 | E20: 01 3 У1 S8500 | F20: 100 | G20: 574.10 | H20: 137.08 | I20: 437.0
A21: Выборы | B21: 801 | C21: 01 | D21: 07 | E21: 99 0 00 Я0995 | G21: =G22 -> 91.06 | I21: 91.1
A22: Специальные расходы | B22: 801 | C22: 01 | D22: 07 | E22: 99 0 00 Я0995 | F22: 880 | G22: 91.06 | I22: 91.1
A23: РЕЗЕРВНЫЕ ФОНДЫ | B23: 801 | C23: 01 | D23: 11 | G23: =G24 -> 15.00 | I23: 15.0
A24: Подпрограмма «Обеспечение безопасности населения и профилактика терроризма и экстремизма» | B24: 801 | C24: 01 | D24: 11 | E24: 02 2 00 00000 | G24: =G25+G28+G31 -> 15.00 | I24: 15.0
A25: Основное мероприятие "Обеспечение первичных мер пожарной безопасности в границах поселений" | B25: 801 | C25: 01 | D25: 11 | E25: 02 2 01 Ш1000 | G25: =G26 -> 5.00 | I25: 5.0
A26: Обеспечение первичных мер пожарной безопасности | B26: 801 | C26: 01 | D26: 11 | E26: 02 2 01 Ш1000 | G26: =G27 -> 5.00 | I26: 5.0
A27: Иные бюджетные ассигнования | B27: 801 | C27: 01 | D27: 11 | E27: 02 2 01 Ш1000 | F27: 800 | G27: 5.00 | I27: 5.0
A28: Основное мероприятие "Профилактика терроризма и экстремизма в границах поселения" | B28: 801 | C28: 01 | D28: 11 | E28: 02 2 02 Ш2000 | G28: =G29 -> 5.00 | I28: 5.0
A29: Совершенствование системы информационно-пропагандистского противодействия терроризму и экстремизму | B29: 801 | C29: 01 | D29: 11 | E29: 02 2 02 Ш2000 | G29: =G30 -> 5.00 | I29: 5.0
A30: Иные бюджетные ассигнования | B30: 801 | C30: 01 | D30: 11 | E30: 02 2 02 Ш2000 | F30: 800 | G30: 5.00 | I30: 5.0
A31: Основное мероприятие "Предупреждение и ликвидация последствий чрезвычайных ситуаций в границах поселения" | B31: 801 | C31: 01 | D31: 11 | E31: 02 2 03 Ш3000 | G31: =G32 -> 5.00 | I31: 5.0
A32: Обеспечение наличия запасов резервов финансовых и материальных ресурсов для ликвидации ЧС | B32: 801 | C32: 01 | D32: 11 | E32: 02 2 03 Ш3000 | G32: =G33 -> 5.00 | I32: 5.0
A33: Иные бюджетные ассигнования | B33: 801 | C33: 01 | D33: 11 | E33: 02 2 03 Ш3000 | F33: 800 | G33: 5.00 | I33: 5.0
A34: ДРУГИЕ ОБЩЕГОСУДАРСТВЕННЫЕ ВОПРОСЫ | B34: 801 | C34: 01 | D34: 13 | G34: =G35+G38+G46+G49 -> 451.50 | H34: =H35+H38+H46+H49 -> 315.28 | I34: 136.2
A35: Подпрограмма "Развитие социально-культурной сферы" | B35: 801 | C35: 01 | D35: 13 | E35: 01 1 01 00000 | G35: =G36 -> 5.00 | I35: 5.0
A36: Основное мероприятие "Развитие культурно-досуговой деятельности" | B36: 801 | C36: 01 | D36: 13 | E36: 01 1 01 00000 | G36: =G37 -> 5.00 | I36: 5.0
A37: Закупка товаров, работ и услуг для обеспечения государственных (муниципальных) нужд | B37: 801 | C37: 01 | D37: 13 | E37: 01 1 01 01200 | F37: 200 | G37: 5.00 | H37: 0.00 | I37: 5.0
A38: Подпрограмма "Развитие экономического и налогового потенциал" | B38: 801 | C38: 01 | D38: 13 | E38: 01 2 00 00000 | G38: =G39+G42 -> 309.00 | H38: =H39+H42 -> 223.51 | I38: 85.5
A39: Основное мероприятие "Формирование эффективной системы управления и распоряжения муниципальными финансами" | B39: 801 | C39: 01 | D39: 13 | E39: 01 2 01 00000 | G39: =G40 -> 34.00 | I39: 34.0
A40: Организация мероприятия по содержанию муниципального имущества | B40: 801 | C40: 01 | D40: 13 | E40: 01 2 02 01200 | G40: =G41 -> 34.00 | I40: 34.0
A41: Закупка товаров, работ и услуг для обеспечения государственных (муниципальных) нужд | B41: 801 | C41: 01 | D41: 13 | E41: 01 2 02 01200 | F41: 200 | G41: 34.00 | I41: 34.0
A42: Основное мероприятие "Повышение эффективности управления муниципальной собственностью" | B42: 801 | C42: 01 | D42: 13 | E42: 01 2 02 00000 | G42: =G43 -> 275.00 | H42: =H43 -> 223.51 | I42: 51.5
A43: Организация мероприятия по содержанию муниципального имущества | B43: 801 | C43: 01 | D43: 13 | E43: 01 2 02 00000 | G43: =G44+G45 -> 275.00 | H43: =H44+H45 -> 223.51 | I43: 51.5
A44: Закупка товаров, работ и услуг для обеспечения государственных (муниципальных) нужд | B44: 801 | C44: 01 | D44: 13 | E44: 01 2 02 01300 | F44: 200 | G44: 100.00 | H44: 91.51 | I44: 8.5
A45: Закупка товаров, работ и услуг для обеспечения государственных (муниципальных) нужд | B45: 801 | C45: 01 | D45: 13 | E45: 01 2 02 06000 | F45: 200 | G45: 175.00 | H45: 132.00 | I45: 43.0
A46: Подпрограмма "Создание условий реализаций муниципальной программы" | B46: 801 | C46: 01 | D46: 13 | E46: 01 3 01 00000 | G46: =G47 -> 130.00 | H46: =H47 -> 91.77 | I46: 38.2
A47: Организация мероприятий по оплате договоров гражданско-правового характера | B47: 801 | C47: 01 | D47: 13 | E47: 01 3 01 01200 | G47: =G48 -> 130.00 | H47: =H48 -> 91.77 | I47: 38.2
A48: Закупка товаров, работ и услуг для обеспечения государственных (муниципальных) нужд | B48: 801 | C48: 01 | D48: 13 | E48: 01 3 01 01200 | F48: 200 | G48: 130.00 | H48: 91.77 | I48: 38.2
A49: Непрограммные направления деятельности сельской администрации | B49: 801 | C49: 01 | D49: 13 | E49: 99 0 У0 45300 | G49: =G50 -> 7.50 | I49: 7.5
A50: Обеспечение мероприятий пв области законодательства об административных правонарушениях | B50: 801 | C50: 01 | D50: 13 | E50: 99 0 У0 45300 | G50: =G51 -> 7.50 | I50: 7.5
A51: Закупка товаров, работ и услуг для обеспечения государственных (муниципальных) нужд | B51: 801 | C51: 01 | D51: 13 | E51: 99 0 У0 45300 | F51: 200 | G51: 7.50 | I51: 7.5
A52: НАЦИОНАЛЬНАЯ ОБОРОНА | B52: 801 | C52: 02 | D52: 00 | G52: =G53 -> 123.60 | H52: 65.06 | I52: 58.5
A53: Мобилизационная и вневойсковая подготовка | B53: 801 | C53: 02 | D53: 03 | E53: 99 0 00 00000 | G53: 123.60 | H53: 65.06 | I53: 58.5
A54: Осуществление первичного воинского учета на территориях, где отсутствуют военные комиссариаты | B54: 801 | C54: 02 | D54: 03 | E54: 99 0 Л1 51180 | G54: 123.60 | H54: 65.06 | I54: 58.5
A55: Расходы на выплаты персоналу в целях обеспечения выполнения функций государственными (муниципальными) органами, казенными учреждениями, органами управления государственными внебюджетными фондами | B55: 801 | C55: 02 | D55: 03 | E55: 99 0 Л1 51180 | F55: 100 | G55: 123.60 | H55: 65.06 | I55: 58.5
A56: НАЦИОНАЛЬНАЯ ЭКОНОМИКА | B56: 801 | C56: 04 | D56: 00 | G56: =G57 -> 244.75 | H56: 0.00 | I56: 244.7
A57: Дорожное хозяйство | B57: 801 | C57: 04 | D57: 09 | G57: 244.75 | H57: 0.00 | I57: 244.7
A58: Подпрограмма "Развитие инженерно-коммунального и дорожно транспортного комплекса" | B58: 801 | C58: 04 | D58: 09 | E58: 02 1 01 0Д000 | G58: 244.75 | H58: 0.00 | I58: 244.7
A59: Основное мероприятие "Содержание и развитие дорожно-транспортного комплекса" | B59: 801 | C59: 04 | D59: 09 | E59: 02 1 01 0Д000 | G59: 244.75 | H59: 0.00 | I59: 244.7
A60: Закупка товаров, работ и услуг для обеспечения государственных (муниципальных) нужд | B60: 801 | C60: 04 | D60: 09 | E60: 02 1 01 0Д000 | F60: 200 | G60: 244.75 | H60: 0.00 | I60: 244.7
A61: ЖИЛИЩНО-КОММУНАЛЬНОЕ ХОЗЯЙСТВО | B61: 801 | C61: 05 | D61: 00 | G61: =G62+G66 -> 203.78 | H61: =H62+H66 -> 20.98 | I61: 182.8
A62: Коммунальное хозяйство | B62: 801 | C62: 05 | D62: 02 | G62: =G63 -> 28.86 | H62: 16.56 | I62: 12.3
A63: Подпрограмма "Развитие инженерно- коммунального и дорожно-транспортного комплекса" | B63: 801 | C63: 05 | D63: 02 | E63: 02 1 02 00000 | G63: 28.86 | H63: 16.56 | I63: 12.3
A64: Основное мероприятие "Содержание инженерно -коммунальной инфраструктуры | B64: 801 | C64: 05 | D64: 02 | E64: 02 1 02 00000 | G64: 28.86 | H64: 16.56 | I64: 12.3
A65: Закупка товаров, работ и услуг для обеспечения государственных (муниципальных) нужд | B65: 801 | C65: 05 | D65: 02 | E65: 02 1 02 01400 | F65: 200 | G65: 28.86 | H65: 16.56 | I65: 12.3
A66: Благоустройство | B66: 801 | C66: 05 | D66: 03 | G66: =G67 -> 174.92 | H66: 4.42 | I66: 170.5
A67: Подпрограмма "Повышение уровня благоустройство территории" | B67: 801 | C67: 05 | D67: 03 | E67: 02 3 00 00000 | G67: 174.92 | H67: 4.42 | I67: 170.5
A68: Основное мероприятие "Подержание и улучшение санитрарного и эстетического состояния территории" | B68: 801 | C68: 05 | D68: 03 | E68: 02 3 01 01200 | G68: 174.92 | H68: 4.42 | I68: 170.5
A69: Закупка товаров, работ и услуг для обеспечения государственных (муниципальных) нужд | B69: 801 | C69: 05 | D69: 03 | E69: 02 3 01 01200 | F69: 200 | G69: 174.92 | H69: 4.42 | I69: 170.5
A70: ФИЗИЧЕСКАЯ КУЛЬТУРА И СПОРТ | B70: 801 | C70: 11 | D70: 00 | G70: =G71 -> 532.00 | H70: 400.01 | I70: 132.0
A71: Другие вопросы в области физической культуры и спорта | B71: 801 | C71: 11 | D71: 05 | G71: 532.00 | H71: 400.01 | I71: 132.0
A72: Подпрограмма "Создание условий реализаций муниципальной программы" | B72: 801 | C72: 11 | D72: 05 | E72: 01 3 01 00000 | G72: 532.00 | H72: 400.01 | I72: 132.0
A73: Основное мероприятие "Повышение эффективности муниципального управления" | B73: 801 | C73: 11 | D73: 05 | E73: 01 3 01 01100 | G73: 532.00 | H73: 400.01 | I73: 132.0
A74: Расходы на выплаты персоналу в целях обеспечения выполнения функций государственными (муниципальными) органами, казенными учреждениями, органами управления государственными внебюджетными фондами | B74: 801 | C74: 11 | D74: 05 | E74: 01 3 01 01100 | F74: 100 | G74: 532.00 | H74: 400.01 | I74: =G74-H74 -> 132.0
A75: Условно утверждаемые расходы | B75: 999 | C75: 99 | D75: 99 | E75: 99 9 99 99999 | I75: 0.0
A76: ВСЕГО РАСХОДОВ | G76: =G6+G52+G56+G61+G70 -> 3584.03 | H76: =H6+H52+H56+H61+H70 -> 1544.88 | I76: 2039.1

Sheet 4
C1: Приложение 4 к Постановлению № от 05.2023 г « Об исполнении бюджета сельской администрации МО Малочергинское сельское поселение за 2 квартал 2023 года."
A2: Источники финансирования бюджета муниципального образования Малочергинское сельское поселение за 2 квартал 2023 год
B4: Код бюджетной классификации | C4: Утвержденные плановые назначения на 2023 год, сумма (тыс. рублей) | D4: Кассовое исполнение за 2 квартал 2023 год, сумма (тыс. рублей) | E4: Неисполненные назначение сумма (тыс.руб.)
A5: Дефицит бюджета | C5: =C6 -> 14.92 | D5: =D6 -> -1.11 | E5: =C5-D5 -> 16.03
A6: Источники внутреннего финансирования дефицита бюджета: | B6: 000 01 00 00 00 00 0000 000 | C6: =C8 -> 14.92 | D6: =D8 -> -1.11 | E6: =C6-D6 -> 16.03
A7: в том числе: | E7: 0
A8: Изменение остатков средств на счетах по учету средств бюджета | B8: 000 01 05 00 00 00 0000 000 | C8: 14.92 | D8: -1.11 | E8: 16.03
